bitfinex-derivatives/quotes_BTCF0:USTF0_20250903
["timestamp","ask_amount","ask_price","bid_price","bid_amount"]
[1756910438929,0.01433322,112290.0,112280.0,0.3608]
[1756910439126,0.26433322,112290.0,112280.0,0.3608]
[1756910439435,0.01433322,112290.0,112280.0,0.3608]
[1756910439622,0.01490322,112290.0,112280.0,0.3608]
[1756910440325,0.00305322,112290.0,112280.0,0.62464]
[1756910440722,0.00305322,112290.0,112280.0,1.84996]
[1756910440934,0.00305322,112290.0,112280.0,2.44538803]
[1756910441132,0.00305322,112290.0,112280.0,0.98464]
[1756910441321,0.00305322,112290.0,112280.0,0.3608]
[1756910441525,0.00305322,112290.0,112280.0,0.3708]
[1756910441929,0.26790322,112290.0,112280.0,0.3708]
[1756910442123,0.26790322,112290.0,112280.0,0.0101]
[1756910442328,0.26490322,112290.0,112280.0,0.0001]
[1756910442635,0.01590322,112290.0,112280.0,0.36100002]
[1756910442927,0.00105322,112290.0,112280.0,0.36100002]
[1756910443729,5.322e-05,112290.0,112280.0,0.36100002]
[1756910444132,0.00105322,112290.0,112280.0,0.36100002]
[1756910444932,0.26590322,112290.0,112280.0,0.36100002]
[1756910445336,0.01590322,112290.0,112280.0,0.36100002]
[1756910445633,0.00105322,112290.0,112280.0,0.36100002]
[1756910445937,0.26490322,112290.0,112280.0,0.00020002]
[1756910446330,0.03958322,112290.0,112280.0,0.36100002]
[1756910446635,0.00105322,112290.0,112280.0,0.39769002]
[1756910446837,0.03958322,112290.0,112280.0,0.36100002]
[1756910447335,0.88501125,112290.0,112280.0,0.36100002]
[1756910447737,0.28958322,112290.0,112280.0,0.36100002]
[1756910448233,0.02473322,112290.0,112280.0,0.38385002]
[1756910448836,0.00105322,112290.0,112280.0,0.39769002]
[1756910449027,0.00105322,112290.0,112280.0,0.64769002]
[1756910449532,0.00105322,112290.0,112280.0,0.39769002]
[1756910449932,0.00105322,112290.0,112280.0,1.56311805]
[1756910451736,0.00105322,112290.0,112280.0,2.44283805]
[1756910451933,0.05863,112340.0,112330.0,0.02285]
[1756910452138,0.04368,112340.0,112330.0,0.38375]
[1756910452528,0.04368,112340.0,112330.0,0.39259177]
[1756910453141,0.04668,112340.0,112330.0,0.39259177]
[1756910453639,0.31153,112340.0,112330.0,0.38375]
[1756910453940,0.31153,112340.0,112330.0,0.3609]
[1756910454141,0.90695803,112340.0,112330.0,0.3609]
[1756910454343,0.90695803,112340.0,112320.0,0.02101915]
[1756910454344,1.26775803,112340.0,112320.0,0.02101915]
[1756910454541,1.20622803,112330.0,112320.0,0.0001]
[1756910454728,0.3608,112330.0,112320.0,0.01384]
[1756910454933,1.2646,112330.0,112320.0,0.03669]
[1756910455242,0.023,112340.0,112330.0,0.01384]
[1756910455539,0.021,112340.0,112330.0,0.39759002]
[1756910455742,0.021,112340.0,112330.0,0.37474002]
[1756910455938,0.61642803,112340.0,112330.0,0.37474002]
[1756910456136,1.22722803,112340.0,112330.0,0.00010002]
[1756910456438,1.22622803,112340.0,112330.0,0.00010002]
[1756910456737,1.22822803,112340.0,112330.0,0.00010002]
[1756910457835,0.59542803,112330.0,112320.0,0.0001]
[1756910458137,0.95622803,112330.0,112320.0,0.00445]
[1756910458331,2.10946803,112330.0,112320.0,0.00445]
[1756910458531,2.10946803,112330.0,112310.0,0.0001]
[1756910458532,2.13063559,112330.0,112310.0,0.0001]
[1756910458742,1.20622803,112320.0,112310.0,0.0001]
[1756910458931,1.88019559,112320.0,112300.0,0.0001]
[1756910459136,1.85902803,112310.0,112300.0,0.01394]
[1756910459340,1.85902803,112310.0,112290.0,0.39759]
[1756910459537,0.59542803,112300.0,112290.0,0.39759]
[1756910459735,0.59542803,112300.0,112290.0,0.39749]
[1756910459736,1.49882803,112300.0,112290.0,0.39749]
[1756910460240,1.74858803,112300.0,112280.0,0.37474]
[1756910460438,1.74858803,112300.0,112280.0,0.0001]
[1756910460439,0.95622803,112290.0,112280.0,0.0001]
[1756910460637,2.10978803,112290.0,112270.0,0.00455]
[1756910460942,0.95322803,112280.0,112270.0,0.0001]
[1756910461138,1.85690803,112280.0,112270.0,0.01384]
[1756910461439,0.90332,112280.0,112270.0,0.01384]
[1756910461643,0.0001,112330.0,112310.0,0.01384]
[1756910461644,0.9122161,112330.0,112310.0,0.01384]
[1756910461849,1.52005346,112330.0,112320.0,0.3608]
[1756910462139,1.52005346,112330.0,112310.0,0.3609]
[1756910462336,1.52005346,112330.0,112310.0,0.0001]
[1756910462337,0.59542803,112320.0,112310.0,0.0001]
[1756910462536,1.49966803,112320.0,112310.0,0.37464]
[1756910462737,1.52092525,112320.0,112310.0,0.37464]
[1756910462939,0.59542803,112320.0,112310.0,0.37464]
[1756910463136,1.49950803,112320.0,112310.0,0.37464]
[1756910463345,0.92538454,112320.0,112310.0,0.37464]
[1756910463542,0.61673257,112320.0,112310.0,0.38338109]
[1756910463845,1.52049257,112320.0,112310.0,0.37464]
[1756910464048,1.52049257,112320.0,112310.0,0.38366078]
[1756910464236,0.02130454,112320.0,112310.0,0.38366078]
[1756910464545,0.92954454,112320.0,112310.0,0.38366078]
[1756910465144,1.52497257,112320.0,112310.0,0.38366078]
[1756910465442,0.62073257,112320.0,112310.0,0.38366078]
[1756910465639,1.52593257,112320.0,112310.0,0.38366078]
[1756910465836,0.62173257,112320.0,112310.0,0.38366078]
[1756910466037,0.02630454,112320.0,112310.0,0.38366078]
[1756910466240,0.93038454,112320.0,112310.0,0.38366078]
[1756910466650,0.93034454,112320.0,112310.0,0.38366078]
[1756910467052,0.02630454,112320.0,112310.0,0.63366078]
[1756910468541,0.02530454,112320.0,112310.0,0.63366078]
[1756910468746,0.02530454,112320.0,112310.0,0.65651078]
[1756910469449,0.004,112320.0,112310.0,1.34096111]
[1756910470045,0.02,112340.0,112330.0,0.03839]
[1756910470245,0.04145608,112340.0,112330.0,1.35541803]
[1756910470439,0.04145608,112340.0,112330.0,0.75999]
[1756910471453,0.04345608,112340.0,112330.0,0.75999]
[1756910471753,0.022,112340.0,112330.0,0.75999]
[1756910471954,0.025,112340.0,112330.0,1.00999]
[1756910473248,0.025,112340.0,112330.0,1.08118736]
[1756910474147,0.025,112340.0,112330.0,2.58133539]
[1756910474550,0.025,112340.0,112330.0,1.67661539]
[1756910474752,0.025,112340.0,112330.0,2.66966169]
[1756910474954,0.32372414,112390.0,112380.0,0.03839]
[1756910475153,0.32372414,112390.0,112380.0,0.39919]
[1756910475154,0.29671135,112390.0,112380.0,0.39919]
[1756910475452,0.89213938,112390.0,112380.0,0.39919]
[1756910475652,1.14213938,112390.0,112380.0,0.3608]
[1756910475854,0.54671135,112390.0,112380.0,0.3608]
[1756910476352,1.14213938,112390.0,112380.0,0.3608]
[1756910476547,1.14213938,112390.0,112370.0,0.37447]
[1756910476855,0.54671135,112390.0,112380.0,0.3608]
[1756910477053,1.80365938,112390.0,112370.0,0.37447]
[1756910477260,1.45823135,112390.0,112370.0,0.37891]
[1756910477553,0.59542803,112380.0,112370.0,0.39016]
[1756910477752,0.02141646,112380.0,112370.0,0.40363]
[1756910478054,0.02141646,112380.0,112370.0,0.65363]
[1756910478257,0.02141646,112380.0,112370.0,0.66243223]
[1756910478443,0.02141646,112380.0,112370.0,0.41243223]
[1756910478847,0.86684449,112380.0,112370.0,0.41243223]
[1756910479254,1.77964449,112380.0,112370.0,0.37881]
[1756910479452,1.77964449,112380.0,112370.0,0.36524]
[1756910479652,1.77964449,112380.0,112370.0,0.00444]
[1756910479856,1.78164449,112380.0,112370.0,0.00444]
[1756910480353,4.02324449,112380.0,112370.0,0.00444]
[1756910480651,4.07827382,112380.0,112360.0,0.0001]
[1756910480843,0.89314014,112370.0,112360.0,0.01367]
[1756910481053,1.20622803,112370.0,112350.0,0.37447]
[1756910481249,1.20622803,112370.0,112350.0,0.0001]
[1756910481250,1.75918803,112360.0,112350.0,0.0001]
[1756910481452,1.57227211,112360.0,112340.0,0.3609]
[1756910481750,1.50942803,112350.0,112340.0,0.37447]
[1756910481947,0.65851211,112360.0,112350.0,0.01357]
[1756910482149,1.55822014,112360.0,112350.0,0.37437]
[1756910482457,0.04971211,112380.0,112360.0,0.01357]
[1756910482647,0.96475211,112380.0,112370.0,0.37437]
[1756910482848,1.51246803,112380.0,112370.0,0.3608]
[1756910483166,1.51130803,112380.0,112370.0,0.37437]
[1756910483453,0.59642803,112380.0,112370.0,0.37437]
[1756910483649,0.91572,112380.0,112370.0,0.37437]
[1756910484160,1.51214803,112380.0,112370.0,0.37437]
[1756910484360,0.002,112380.0,112370.0,0.62437]
[1756910484556,0.002,112380.0,112370.0,0.37437]
[1756910484863,1.51174803,112380.0,112370.0,0.37437]
[1756910485063,0.91632,112380.0,112370.0,0.37437]
[1756910485760,1.51174803,112380.0,112370.0,0.37437]
[1756910485966,0.002,112380.0,112370.0,0.37437]
[1756910486255,0.002,112380.0,112370.0,0.64919]
[1756910487356,0.002,112380.0,112370.0,0.7381663]
[1756910487563,0.002,112380.0,112370.0,0.64919]
[1756910487954,0.27529489,112390.0,112370.0,2.15713803]
[1756910488155,0.09363832,112420.0,112380.0,0.7381584]
[1756910488361,0.09363832,112420.0,112410.0,0.73074]
[1756910488555,0.11788832,112420.0,112410.0,0.73074]
[1756910488755,0.71331635,112420.0,112410.0,0.7216]
[1756910489157,0.96331635,112420.0,112410.0,0.3608]
[1756910489459,0.01474,112410.0,112400.0,0.0001]
[1756910489664,0.03899,112400.0,112390.0,0.3609]
[1756910489866,0.95127,112400.0,112390.0,0.38562]
[1756910490162,0.93613,112400.0,112390.0,0.38562]
[1756910490353,1.61432526,112400.0,112390.0,0.3608]
[1756910490558,1.86432526,112400.0,112390.0,0.3608]
[1756910490865,0.95344526,112400.0,112390.0,0.38562]
[1756910491261,0.001,112400.0,112390.0,0.38562]
[1756910491466,0.001,112400.0,112390.0,0.63562]
[1756910492262,0.03999,112400.0,112390.0,0.38562]
[1756910492453,0.66445526,112400.0,112390.0,0.38562]
[1756910492655,0.001,112400.0,112390.0,0.38562]
[1756910493263,0.001,112400.0,112390.0,0.3955]
[1756910493471,0.001,112400.0,112390.0,1.30895526]
[1756910493763,0.07889832,112420.0,112390.0,1.30905526]
[1756910493966,0.10021188,112420.0,112410.0,0.7563]
[1756910494268,0.07889832,112420.0,112410.0,1.0064]
[1756910494461,0.07889832,112420.0,112410.0,1.66985526]
[1756910494661,0.07889832,112420.0,112410.0,1.0064]
[1756910495268,0.07889832,112420.0,112410.0,0.7564]
[1756910496455,0.10314832,112420.0,112410.0,0.74652]
[1756910497058,0.07889832,112420.0,112410.0,1.0064]
[1756910497263,0.07889832,112420.0,112410.0,1.66985526]
[1756910497869,0.07889832,112420.0,112410.0,1.0064]
[1756910498066,0.07889832,112420.0,112410.0,1.0154036]
[1756910498270,0.07889832,112420.0,112410.0,1.67885886]
[1756910498767,0.07889832,112420.0,112410.0,0.7555236]
[1756910498768,0.11847832,112420.0,112410.0,0.7555236]
[1756910499069,0.07889832,112420.0,112410.0,0.7555236]
[1756910499263,0.07889832,112420.0,112410.0,0.7654036]
[1756910499668,0.10360832,112420.0,112410.0,0.7555236]
[1756910500267,0.11847832,112420.0,112410.0,0.7555236]
[1756910500468,0.80324732,112420.0,112410.0,0.7555236]
[1756910500666,1.05324732,112420.0,112410.0,0.7555236]
[1756910501372,2.00108732,112420.0,112410.0,0.3609]
[1756910501572,2.00231443,112420.0,112410.0,0.3609]
[1756910502160,1.05447443,112420.0,112410.0,0.3609]
[1756910502461,1.75175443,112420.0,112410.0,0.36983495]
[1756910502665,1.75175443,112420.0,112410.0,0.3609]
[1756910502666,2.00175443,112420.0,112410.0,0.3609]
[1756910503171,0.14101917,112420.0,112410.0,0.3609]
[1756910503371,1.75139443,112420.0,112410.0,0.3609]
[1756910503764,0.80447443,112420.0,112410.0,0.3609]
[1756910503966,0.12614917,112420.0,112410.0,0.74429]
[1756910504370,0.78960443,112420.0,112410.0,0.74429]
[1756910504671,0.08012543,112420.0,112410.0,1.00786]
[1756910505275,0.07832543,112420.0,112410.0,1.00786]
[1756910505776,0.10303543,112420.0,112410.0,0.74429]
[1756910505973,0.78136069,112420.0,112410.0,0.74429]
[1756910506175,0.13923146,112420.0,112410.0,0.74429]
[1756910506476,0.80268672,112420.0,112410.0,0.74429]
[1756910507274,0.09965146,112420.0,112410.0,0.75187]
[1756910507573,0.09965146,112420.0,112410.0,0.74199]
[1756910507968,0.12436146,112420.0,112410.0,0.74199]
[1756910508165,0.09965146,112420.0,112410.0,0.74199]
[1756910508873,0.07832543,112420.0,112410.0,2.70751086]
[1756910509065,0.07477533,112420.0,112410.0,2.70751086]
[1756910509672,0.07477533,112420.0,112410.0,2.61856526]
[1756910509976,0.07477533,112420.0,112410.0,2.70751086]
[1756910510174,0.07477533,112420.0,112410.0,2.79751086]
[1756910510472,0.01800682,112420.0,112410.0,2.17427086]
[1756910510672,0.01800682,112420.0,112410.0,1.92427086]
[1756910510872,0.01800682,112420.0,112410.0,1.2608156]
[1756910511079,0.01800682,112420.0,112410.0,2.78768526]
[1756910511469,0.01800682,112420.0,112410.0,3.12663096]
[1756910512176,0.01800682,112420.0,112410.0,2.17427086]
[1756910512476,0.01800682,112420.0,112410.0,2.78868526]
[1756910512675,0.01800682,112420.0,112410.0,3.12763086]
[1756910513082,0.01800682,112420.0,112410.0,2.78736526]
[1756910513276,0.01800682,112420.0,112410.0,2.87631096]
[1756910513775,0.01800682,112420.0,112410.0,1.83632526]
[1756910513977,0.01800682,112420.0,112410.0,2.78700526]
[1756910514273,0.01800682,112420.0,112410.0,1.17287]
[1756910514474,0.01800682,112420.0,112410.0,0.76287]
[1756910514475,0.04271682,112420.0,112410.0,0.76287]
[1756910514678,0.29271682,112420.0,112410.0,0.76287]
[1756910515073,0.30758682,112420.0,112410.0,0.75299]
[1756910515267,0.32894263,112420.0,112410.0,0.75299]
[1756910515580,0.99239789,112420.0,112410.0,0.7204]
[1756910515781,0.32894263,112420.0,112410.0,0.74299]
[1756910516470,0.99239789,112420.0,112410.0,0.7204]
[1756910516672,0.99239789,112420.0,112410.0,0.0011]
[1756910516872,0.99239789,112420.0,112410.0,0.3619]
[1756910517182,1.04011,112420.0,112410.0,0.3619]
[1756910517876,1.04011,112420.0,112400.0,0.3609]
[1756910518071,1.32196737,112410.0,112400.0,0.0001]
[1756910518283,1.32196737,112410.0,112390.0,0.37547]
[1756910518284,2.29172318,112410.0,112390.0,0.37547]
[1756910518469,0.66468237,112400.0,112390.0,0.37547]
[1756910518783,0.68603818,112400.0,112390.0,0.3608]
[1756910518973,0.93603818,112400.0,112390.0,0.3608]
[1756910519281,0.68603818,112400.0,112390.0,0.3608]
[1756910519484,1.63759818,112400.0,112390.0,0.3608]
[1756910519774,2.55105344,112400.0,112390.0,0.3608]
[1756910519969,1.88559818,112400.0,112390.0,0.3608]
[1756910520173,1.88559818,112400.0,112390.0,0.3638]
[1756910520372,0.97214292,112400.0,112390.0,0.40096]
[1756910520580,1.63451818,112400.0,112390.0,0.40096]
[1756910520777,1.63451818,112400.0,112390.0,0.40396]
[1756910520983,0.02058292,112400.0,112390.0,0.40396]
[1756910521185,0.42529182,112420.0,112390.0,0.40396]
[1756910521186,2.04014708,112420.0,112410.0,0.01457]
[1756910521387,0.72794708,112420.0,112410.0,0.01457]
[1756910521577,0.72794708,112420.0,112410.0,0.37537]
[1756910521883,0.72794708,112420.0,112400.0,0.37991]
[1756910521884,0.97794708,112420.0,112400.0,0.37991]
[1756910522079,0.31449182,112420.0,112410.0,0.3608]
[1756910522378,1.01525182,112420.0,112410.0,0.37537]
[1756910522576,1.01525182,112420.0,112410.0,0.37637]
[1756910522780,0.06449182,112420.0,112410.0,0.39896]
[1756910522979,0.01677971,112420.0,112410.0,0.39896]
[1756910523385,0.01777971,112420.0,112410.0,0.39896]
[1756910523686,0.01777971,112420.0,112410.0,0.64896]
[1756910524381,0.01777971,112420.0,112410.0,1.40136046]
[1756910524581,0.01777971,112420.0,112410.0,0.64896]
[1756910524782,0.01777971,112420.0,112410.0,0.39896]
[1756910526390,0.68123497,112420.0,112410.0,0.39896]
[1756910526783,0.01777971,112420.0,112410.0,0.39896]
[1756910529378,0.01777971,112420.0,112410.0,0.64896]
[1756910530384,0.01777971,112420.0,112410.0,0.39896]
[1756910531990,0.68123497,112420.0,112410.0,0.39896]
[1756910532194,0.70259372,112420.0,112410.0,0.39896]
[1756910532495,0.03913846,112420.0,112410.0,0.39896]
[1756910532690,0.01777971,112420.0,112410.0,0.39896]
[1756910534795,0.01777971,112420.0,112410.0,1.31241526]
[1756910534996,0.01777971,112420.0,112410.0,0.64896]
[1756910535300,0.01777971,112420.0,112410.0,1.31241526]
[1756910535592,0.01777971,112420.0,112410.0,0.64896]
[1756910537386,0.01677971,112420.0,112410.0,0.64896]
[1756910537591,0.01677971,112420.0,112410.0,0.64996]
[1756910537795,0.01677971,112420.0,112410.0,0.65296]
[1756910537994,0.68023497,112420.0,112410.0,0.40296]
[1756910538189,0.01677971,112420.0,112410.0,0.40296]
[1756910538384,0.01677971,112420.0,112410.0,0.39996]
[1756910538597,0.01677971,112420.0,112410.0,0.40196]
[1756910539495,0.01677971,112420.0,112410.0,2.35900006]
[1756910539890,0.12876685,112450.0,112440.0,0.03859]
[1756910540092,0.12876685,112450.0,112440.0,0.76019]
[1756910540899,0.12876685,112450.0,112440.0,0.7692733]
[1756910541200,0.38076685,112450.0,112440.0,0.7692733]
[1756910541699,0.37876685,112450.0,112440.0,0.7702733]
[1756910541903,0.37876685,112450.0,112440.0,0.7722733]
[1756910543198,0.37876685,112450.0,112440.0,0.84319471]
[1756910543691,0.37876685,112450.0,112440.0,0.7722733]
[1756910544295,0.12876685,112450.0,112440.0,0.7722733]
[1756910548101,0.12876685,112450.0,112440.0,0.84187176]
[1756910550605,0.12876685,112450.0,112440.0,1.50532702]
[1756910550907,0.12876685,112450.0,112440.0,0.84187176]
[1756910552696,0.12876685,112450.0,112440.0,1.68418963]
[1756910552901,0.12876685,112450.0,112440.0,1.83418963]
[1756910553898,0.12876685,112450.0,112440.0,0.99187176]
[1756910556599,0.12876685,112450.0,112440.0,1.93995176]
[1756910557205,0.12876685,112450.0,112440.0,2.53226963]
[1756910557394,0.12876685,112450.0,112440.0,2.78226963]
[1756910557593,0.12876685,112450.0,112440.0,2.18995176]
[1756910557799,0.12876685,112450.0,112440.0,2.78226963]
[1756910558199,0.12876685,112450.0,112440.0,2.18995176]
[1756910558402,0.12876685,112450.0,112440.0,2.78226963]
[1756910558706,0.12876685,112450.0,112440.0,2.78236963]
[1756910559094,0.12876685,112450.0,112440.0,1.83428963]
[1756910559295,0.12876685,112450.0,112440.0,2.78324963]
[1756910560499,0.12876685,112450.0,112440.0,2.53288963]
[1756910560701,0.12876685,112450.0,112440.0,1.94057176]
[1756910560907,0.12876685,112450.0,112440.0,1.93965176]
[1756910561308,0.12876685,112450.0,112440.0,1.93865176]
[1756910562008,0.37892685,112450.0,112440.0,0.99197176]
[1756910562210,0.37892685,112450.0,112440.0,0.84197176]
[1756910563808,0.40034163,112450.0,112440.0,0.84197176]
[1756910564000,0.37876685,112450.0,112440.0,0.84197176]
[1756910564404,0.12876685,112450.0,112440.0,0.84197176]
[1756910565705,0.12892685,112450.0,112440.0,0.84197176]
[1756910565906,0.15035198,112450.0,112440.0,0.84197176]
[1756910566106,0.12892685,112450.0,112440.0,0.84197176]
[1756910566410,0.15035777,112450.0,112440.0,0.84197176]
[1756910566611,0.12876685,112450.0,112440.0,0.84197176]
[1756910566811,0.12876685,112450.0,112440.0,1.78497176]
[1756910567210,0.12876685,112450.0,112440.0,0.84197176]
[1756910567412,0.12876685,112450.0,112440.0,1.78461176]
[1756910568702,0.12076563,112450.0,112440.0,2.62692963]
[1756910568902,0.11188728,112450.0,112440.0,2.62692963]
[1756910569108,0.11188728,112450.0,112440.0,2.62456963]
[1756910569310,0.11188728,112450.0,112440.0,1.68428963]
[1756910569507,0.11188728,112450.0,112440.0,2.62456963]
[1756910569911,0.11188728,112450.0,112440.0,1.68428963]
[1756910570408,0.11188728,112450.0,112440.0,2.62312963]
[1756910570609,0.11188728,112450.0,112440.0,1.68428963]
[1756910570815,0.11188728,112450.0,112440.0,2.62312963]
[1756910571916,0.9244944,112490.0,112440.0,2.69821653]
[1756910572215,0.94609811,112490.0,112480.0,0.75925]
[1756910572519,0.94609811,112490.0,112480.0,0.75935]
[1756910573411,0.94593811,112490.0,112480.0,0.75935]
[1756910573711,0.9254944,112490.0,112480.0,0.75935]
[1756910573904,1.1754944,112490.0,112480.0,0.75935]
[1756910574104,0.9254944,112490.0,112480.0,2.28786787]
[1756910574611,0.9244944,112490.0,112480.0,1.69555]
[1756910574814,0.9254944,112490.0,112480.0,1.69555]
[1756910575214,0.9254944,112490.0,112480.0,2.28786787]
[1756910575420,0.75035077,112490.0,112480.0,2.53678787]
[1756910575908,0.75035077,112490.0,112480.0,1.35166787]
[1756910576108,0.75035077,112490.0,112480.0,2.28778787]
[1756910576312,0.75035077,112490.0,112480.0,1.69455]
[1756910576915,0.75035077,112490.0,112480.0,2.28686787]
[1756910577114,0.75035077,112490.0,112480.0,2.28682787]
[1756910577314,0.75035077,112490.0,112480.0,2.28634787]
[1756910577509,0.75035077,112490.0,112480.0,1.69403]
[1756910577712,0.75035077,112490.0,112480.0,0.76035]
[1756910577916,0.75035077,112490.0,112480.0,1.69355]
[1756910578111,0.75035077,112490.0,112480.0,0.76035]
[1756910578308,1.00051077,112490.0,112480.0,0.76035]
[1756910578816,0.75035077,112490.0,112480.0,0.76035]
[1756910579008,0.75035077,112490.0,112480.0,1.35266787]
[1756910579204,0.75035077,112490.0,112480.0,0.76035]
[1756910579816,0.75051077,112490.0,112480.0,0.76035]
[1756910580005,0.75035077,112490.0,112480.0,0.76035]
[1756910580209,0.75035077,112490.0,112480.0,1.69855]
[1756910580414,0.75035077,112490.0,112480.0,0.76035]
[1756910580610,0.75035077,112490.0,112480.0,1.69859]
[1756910580811,0.75035077,112490.0,112480.0,2.29090787]
[1756910581112,0.75035077,112490.0,112480.0,1.69859]
[1756910581313,0.75035077,112490.0,112480.0,0.76035]
[1756910581618,0.75035077,112490.0,112480.0,1.69859]
[1756910582007,0.75035077,112490.0,112480.0,0.76035]
[1756910582216,0.75035077,112490.0,112480.0,1.69795]
[1756910582411,0.75035077,112490.0,112480.0,0.76035]
[1756910582613,0.75035077,112490.0,112480.0,1.69779]
[1756910583017,0.75035077,112490.0,112480.0,2.29010787]
[1756910583216,0.75035077,112490.0,112480.0,1.69779]
[1756910584518,0.75035077,112490.0,112480.0,0.76035]
[1756910585220,0.75035077,112490.0,112480.0,1.69611]
[1756910585420,0.75035077,112490.0,112480.0,1.69591]
[1756910587219,0.75035077,112490.0,112480.0,1.69515]
[1756910587427,0.75035077,112490.0,112480.0,0.76035]
[1756910587621,0.75035077,112490.0,112480.0,1.69519]
[1756910588213,0.75035077,112490.0,112480.0,2.28750787]
[1756910588417,0.75035077,112490.0,112480.0,1.94519]
[1756910588725,0.75035077,112490.0,112480.0,2.53750787]
[1756910589319,0.55930874,112490.0,112480.0,2.53750787]
[1756910589524,0.55930874,112490.0,112480.0,2.63639357]
[1756910589525,0.21828836,112490.0,112480.0,2.63639357]
[1756910589722,0.21828836,112490.0,112480.0,2.93639357]
[1756910589923,0.21828836,112490.0,112480.0,3.02639357]
[1756910590125,0.21828836,112490.0,112480.0,2.09155357]
[1756910590318,0.21828836,112490.0,112480.0,3.02511357]
[1756910590627,0.21162774,112520.0,112510.0,0.03682]
[1756910590826,0.21162774,112520.0,112510.0,1.69204]
[1756910591021,0.21162774,112520.0,112510.0,0.75852]
[1756910591217,0.21162774,112520.0,112510.0,1.69192]
[1756910591821,0.21162774,112520.0,112510.0,2.28423787]
[1756910592021,0.21162774,112520.0,112510.0,1.35083787]
[1756910592219,0.21178774,112520.0,112510.0,0.75852]
[1756910592726,0.21162774,112520.0,112510.0,1.62988]
[1756910592926,0.21162774,112520.0,112510.0,2.22219787]
[1756910593122,0.21162774,112520.0,112510.0,2.30358203]
[1756910593421,0.21162774,112520.0,112510.0,2.55458203]
[1756910593635,0.21162774,112520.0,112510.0,2.57498581]
[1756910593821,0.21162774,112520.0,112510.0,1.98266794]
[1756910594021,0.21162774,112520.0,112510.0,2.57498581]
[1756910594821,0.21162774,112520.0,112510.0,2.04350794]
[1756910595021,0.21162774,112520.0,112510.0,1.79230794]
[1756910595230,0.21178774,112520.0,112510.0,1.79206794]
[1756910595528,0.21162774,112520.0,112510.0,1.88202794]
[1756910595926,0.21178774,112520.0,112510.0,0.95130794]
[1756910596230,0.24138896,112540.0,112530.0,0.01406]
[1756910596523,0.1912097,112540.0,112530.0,1.6886]
[1756910596731,0.1912097,112540.0,112530.0,2.54075787]
[1756910596923,0.1912097,112540.0,112530.0,2.29075787]
[1756910597127,0.1912097,112540.0,112530.0,2.54075787]
[1756910597128,0.08774907,112540.0,112530.0,2.54075787]
[1756910597320,0.08774907,112540.0,112530.0,1.61083787]
[1756910597523,0.08774907,112540.0,112530.0,2.60131787]
[1756910597727,0.08774907,112540.0,112530.0,1.70083787]
[1756910598027,0.08774907,112540.0,112530.0,2.03852]
[1756910598233,0.08774907,112540.0,112530.0,2.85083787]
[1756910598728,0.08386907,112540.0,112530.0,2.85083787]
[1756910599037,0.08386907,112540.0,112530.0,1.92183787]
[1756910599330,0.08386907,112540.0,112530.0,2.60227787]
[1756910599532,0.08386907,112540.0,112530.0,1.67183787]
[1756910599733,0.08386907,112540.0,112530.0,1.07952]
[1756910600127,0.08386907,112540.0,112530.0,2.0094]
[1756910600428,1.36095375,112590.0,112530.0,2.60171787]
[1756910600429,0.59231787,112580.0,112530.0,2.60171787]
[1756910600628,0.0214427,112580.0,112570.0,0.39762]
[1756910600830,0.0214427,112580.0,112570.0,0.39772]
[1756910601631,0.00016,112580.0,112570.0,0.39772]
[1756910602331,0.00016,112580.0,112570.0,1.3354208]
[1756910602533,0.84247787,112580.0,112570.0,0.3839008]
[1756910602832,0.86365338,112580.0,112570.0,0.3698408]
[1756910603037,0.86365338,112580.0,112560.0,0.37496]
[1756910603229,0.61365338,112580.0,112560.0,0.37496]
[1756910603532,0.61365338,112580.0,112560.0,0.38388695]
[1756910604827,0.84231787,112570.0,112560.0,0.38388695]
[1756910605023,0.27117551,112570.0,112560.0,0.36972695]
[1756910605431,0.27117619,112570.0,112560.0,0.36972695]
[1756910605624,0.02117619,112570.0,112560.0,0.40654695]
[1756910605830,1.59237162,112590.0,112580.0,0.01406]
[1756910606030,1.6135452,112590.0,112580.0,0.37486]
[1756910606629,0.6135452,112590.0,112580.0,0.37486]
[1756910607633,0.8635452,112590.0,112570.0,0.37496]
[1756910607834,0.59231787,112580.0,112570.0,0.37496]
[1756910608132,0.02117358,112580.0,112570.0,0.39762]
[1756910608336,0.02117358,112580.0,112570.0,0.46829613]
[1756910608837,0.61349145,112580.0,112570.0,0.01406]
[1756910609030,0.02117358,112580.0,112570.0,0.01406]
[1756910609231,0.02117358,112580.0,112570.0,0.03682]
[1756910609534,0.86349145,112580.0,112570.0,0.03682]
[1756910609735,0.86349145,112580.0,112570.0,0.01406]
[1756910609936,0.86349145,112580.0,112570.0,0.03682]
[1756910610138,0.86349145,112580.0,112570.0,0.39762]
[1756910610140,0.27117358,112580.0,112570.0,0.39762]
[1756910610337,0.02117358,112580.0,112570.0,0.39762]
[1756910612539,5.375e-05,112590.0,112580.0,0.03682]
[1756910612737,5.375e-05,112590.0,112580.0,0.39762]
[1756910612932,0.02120906,112590.0,112580.0,0.39762]
[1756910613239,0.02120906,112590.0,112580.0,0.46821881]
[1756910613652,0.93230214,112590.0,112580.0,0.01406]
[1756910615037,0.68230214,112590.0,112580.0,0.39762]
[1756910616930,0.02120906,112590.0,112580.0,0.47043541]
[1756910617139,0.68230214,112590.0,112580.0,0.01406]
[1756910617540,1.29310214,112590.0,112570.0,0.01416]
[1756910617736,0.66109308,112580.0,112570.0,0.01416]
[1756910617938,1.61396839,112580.0,112570.0,0.01406]
[1756910618243,1.61396839,112580.0,112570.0,0.03682]
[1756910618632,1.61396839,112580.0,112560.0,0.37496]
[1756910618633,1.86396839,112580.0,112560.0,0.37496]
[1756910618834,1.02189308,112570.0,112560.0,0.0001]
[1756910619140,1.11299974,112570.0,112560.0,0.01458]
[1756910619541,1.11299974,112570.0,112560.0,0.03829]
[1756910619845,1.61376839,112570.0,112560.0,0.03829]
[1756910620042,1.61376839,112570.0,112560.0,0.04740096]
[1756910620242,1.61376839,112570.0,112560.0,0.00911096]
[1756910620441,1.9114805,112570.0,112550.0,0.37496]
[1756910620641,0.66109308,112560.0,112550.0,0.39867]
[1756910620941,0.02115531,112560.0,112550.0,0.39857]
[1756910621242,1.63916519,112570.0,112550.0,0.40751534]
[1756910621446,1.6603205,112570.0,112560.0,0.01458]
[1756910621643,1.6603205,112570.0,112550.0,0.38390534]
[1756910621944,0.66109308,112560.0,112550.0,0.40871534]
[1756910622144,0.68224839,112560.0,112550.0,0.40851534]
[1756910622547,0.68224839,112560.0,112550.0,0.37586]
[1756910622747,0.9799605,112560.0,112550.0,0.37586]